fUSD/lending_fUSD_20240227
["ID","MTS","AMOUNT","RATE_DAILY","PERIOD"]
[315487084,1709075435010,-500.0,0.00023835,2]
[315487085,1709075435020,-500.0,0.00023835,2]
[315487086,1709075435029,-500.0,0.00023835,2]
[315487087,1709075435038,-500.0,0.00023835,2]
[315487088,1709075435047,-500.0,0.00023835,2]
[315487089,1709075435057,-500.0,0.00023835,2]
[315487090,1709075435067,-500.0,0.00023835,2]
[315487091,1709075435078,-500.0,0.00023835,2]
[315487092,1709075435089,-500.0,0.00023835,2]
[315487093,1709075435098,-500.0,0.00023835,2]
[315487094,1709075435109,-500.0,0.00023835,2]
[315487095,1709075435119,-500.0,0.00023835,2]
[315487096,1709075435129,-500.0,0.00023835,2]
[315487097,1709075435140,-500.0,0.00023835,2]
[315487098,1709075435150,-500.0,0.00023835,2]
[315487099,1709075435160,-400.2497635,0.00023835,2]
[315487100,1709075435169,-500.0,0.00023835,2]
[315487101,1709075435179,-500.0,0.00023835,2]
[315487102,1709075435189,-500.0,0.00023835,2]
[315487103,1709075435199,-281.14648797,0.00023835,2]
[315487104,1709075435208,-500.0,0.00023835,2]
[315487105,1709075435218,-500.0,0.00023835,2]
[315487106,1709075435227,-500.0,0.00023835,2]
[315487107,1709075435237,-500.0,0.00023835,2]
[315487108,1709075435246,-500.0,0.00023835,2]
[315487109,1709075435255,-500.0,0.00023835,2]
[315487110,1709075435265,-500.0,0.00023835,2]
[315487111,1709075435275,-382.33467243,0.00023835,2]
[315487112,1709075435284,-500.0,0.00023835,2]
[315487113,1709075435294,-500.0,0.00023835,2]
[315487114,1709075435303,-500.0,0.00023835,2]
[315487115,1709075435313,-500.0,0.00023835,2]
[315487116,1709075435322,-500.0,0.00023835,2]
[315487117,1709075435332,-500.0,0.00023835,2]
[315487118,1709075435342,-500.0,0.00023835,2]
[315487119,1709075435351,-500.0,0.00023835,2]
[315487120,1709075435361,-433.50763702,0.00023835,2]
[315487121,1709075435370,-500.0,0.00023835,2]
[315487122,1709075435380,-172.12,0.00023835,2]
[315487123,1709075435390,-500.0,0.00023835,2]
[315487124,1709075435399,-510.45,0.00023835,2]
[315487125,1709075435409,-510.45,0.00023835,2]
[315487126,1709075435418,-510.45,0.00023835,2]
[315487127,1709075435428,-510.45,0.00023835,2]
[315487128,1709075435437,-510.45,0.00023835,2]
[315487129,1709075435446,-500.0,0.00023835,2]
[315487130,1709075435455,-510.45,0.00023835,2]
[315487131,1709075435465,-510.45,0.00023835,2]
[315487132,1709075435475,-510.45,0.00023835,2]
[315487133,1709075435484,-510.45,0.00023835,2]
[315487134,1709075435494,-510.45,0.00023835,2]
[315487135,1709075435503,-500.0,0.00023835,2]
[315487136,1709075435512,-153.12757047,0.00023835,2]
[315487137,1709075435521,-209.48996847,0.00023835,2]
[315487138,1709075435531,-500.0,0.00023835,2]
[315487139,1709075435540,-500.0,0.00023835,2]
[315487140,1709075435551,-944.63,0.00023835,2]
[315487141,1709075435561,-500.0,0.00023835,2]
[315487142,1709075435570,-944.63,0.00023835,2]
[315487143,1709075435580,-500.0,0.00023835,2]
[315487144,1709075435594,-944.63,0.00023835,2]
[315487145,1709075435607,-500.0,0.00023835,2]
[315487146,1709075435621,-944.63,0.00023835,2]
[315487147,1709075435634,-500.0,0.00023835,2]
[315487148,1709075435655,-500.0,0.00023835,2]
[315487149,1709075435668,-500.0,0.00023835,2]
[315487150,1709075435678,-944.63,0.00023835,2]
[315487151,1709075435689,-944.63,0.00023835,2]
[315487152,1709075435700,-500.0,0.00023835,2]
[315487153,1709075435713,-944.63,0.00023835,2]
[315487154,1709075435724,-944.63,0.00023835,2]
[315487155,1709075435736,-500.0,0.00023835,2]
[315487156,1709075435747,-453.36,0.00023835,2]
[315487157,1709075435760,-944.63,0.00023835,2]
[315487158,1709075435771,-944.63,0.00023835,2]
[315487159,1709075435784,-500.0,0.00023835,2]
[315487160,1709075435795,-500.0,0.00023835,2]
[315487161,1709075435807,-500.0,0.00023835,2]
[315487162,1709075435819,-329.76,0.00023835,2]
[315487163,1709075435829,-500.0,0.00023835,2]
[315487164,1709075435840,-500.0,0.00023835,2]
[315487165,1709075435852,-500.0,0.00023835,2]
[315487166,1709075435864,-500.0,0.00023835,2]
[315487167,1709075435875,-500.0,0.00023835,2]
[315487168,1709075435888,-500.0,0.00023835,2]
[315487169,1709075435898,-500.0,0.00023835,2]
[315487170,1709075435909,-500.0,0.00023835,2]
[315487171,1709075435920,-500.0,0.00023835,2]
[315487172,1709075435932,-347.09,0.00023835,2]
[315487173,1709075435943,-512.52433773,0.00023835,2]
[315487174,1709075435955,-500.0,0.00023835,2]
[315487175,1709075435964,-541.11437496,0.00023835,2]
[315487176,1709075435974,-500.0,0.00023835,2]
[315487177,1709075435986,-500.0,0.00023835,2]
[315487178,1709075436001,-500.0,0.00023835,2]
[315487179,1709075436013,-500.0,0.00023835,2]
[315487180,1709075436024,-500.0,0.00023835,2]
[315487181,1709075436036,-500.0,0.00023835,2]
[315487182,1709075436048,-500.0,0.00023835,2]
[315487183,1709075436059,-500.0,0.00023835,2]
[315487184,1709075436071,-500.0,0.00023835,2]
[315487185,1709075436082,-500.0,0.00023835,2]
[315487186,1709075436092,-500.0,0.00023835,2]
[315487187,1709075436104,-500.0,0.00023835,2]
[315487188,1709075436116,-500.0,0.00023835,2]
[315487189,1709075436128,-500.0,0.00023835,2]
[315487190,1709075436141,-500.0,0.00023835,2]
[315487191,1709075436152,-150.0,0.00023835,2]
[315487192,1709075436165,-500.0,0.00023835,2]
[315487193,1709075436177,-228.43254261,0.00023835,2]
[315487194,1709075436190,-182.70119587,0.00023835,2]
[315487195,1709075436202,-518.56,0.00023835,2]
[315487196,1709075436215,-518.56,0.00023835,2]
[315487197,1709075436226,-518.56,0.00023835,2]
[315487198,1709075436239,-518.56,0.00023835,2]
[315487199,1709075436251,-518.56,0.00023835,2]
[315487200,1709075436261,-518.56,0.00023835,2]
[315487201,1709075436272,-518.56,0.00023835,2]
[315487202,1709075436282,-518.56,0.00023835,2]
[315487203,1709075436292,-518.56,0.00023835,2]
[315487204,1709075436303,-518.56,0.00023835,2]
[315487205,1709075436314,-500.0,0.00023835,2]
[315487206,1709075436325,-500.0,0.00023835,2]
[315487207,1709075436338,-500.0,0.00023835,2]
[315487208,1709075436349,-497.87011519,0.00023835,2]
[315487209,1709075436362,-500.0,0.00023835,2]
[315487210,1709075436373,-500.0,0.00023835,2]
[315487211,1709075436385,-500.0,0.00023835,2]
[315487212,1709075436397,-500.0,0.00023835,2]
[315487213,1709075436408,-500.0,0.00023835,2]
[315487214,1709075436420,-500.0,0.00023835,2]
[315487215,1709075436430,-500.0,0.00023835,2]
[315487216,1709075436440,-500.0,0.00023835,2]
[315487217,1709075436451,-500.0,0.00023835,2]
[315487218,1709075436462,-500.0,0.00023835,2]
[315487219,1709075436472,-500.0,0.00023835,2]
[315487220,1709075436483,-500.0,0.00023835,2]
[315487221,1709075436493,-500.0,0.00023835,2]
[315487222,1709075436503,-875.74,0.00023835,2]
[315487223,1709075436514,-875.74,0.00023835,2]
[315487224,1709075436525,-875.74,0.00023835,2]
[315487225,1709075436536,-875.74,0.00023835,2]
[315487226,1709075436548,-875.74,0.00023835,2]
[315487227,1709075436558,-500.0,0.00023835,2]
[315487228,1709075436570,-500.0,0.00023835,2]
[315487229,1709075436581,-875.74,0.00023835,2]
[315487230,1709075436592,-875.74,0.00023835,2]
[315487231,1709075436604,-875.74,0.00023835,2]
[315487232,1709075436615,-500.0,0.00023835,2]
[315487233,1709075436626,-875.74,0.00023835,2]
[315487234,1709075436638,-875.74,0.00023835,2]
[315487235,1709075436649,-500.0,0.00023835,2]
[315487236,1709075436665,-500.0,0.00023835,2]
[315487237,1709075436676,-500.0,0.00023835,2]
[315487238,1709075436686,-425.60759391,0.00023835,2]
[315487239,1709075436697,-500.0,0.00023835,2]
[315487240,1709075436707,-500.0,0.00023835,2]
[315487241,1709075436719,-500.0,0.00023835,2]
[315487242,1709075436733,-500.0,0.00023835,2]
[315487243,1709075436744,-500.0,0.00023835,2]
[315487244,1709075436755,-500.0,0.00023835,2]
[315487245,1709075436765,-500.0,0.00023835,2]
[315487246,1709075436777,-500.0,0.00023835,2]
[315487247,1709075436788,-500.0,0.00023835,2]
[315487248,1709075436799,-500.0,0.00023835,2]
[315487249,1709075436809,-642.25,0.00023835,2]
[315487250,1709075436820,-500.0,0.00023835,2]
[315487251,1709075436831,-510.88460076,0.00023835,2]
[315487252,1709075436841,-500.0,0.00023835,2]
[315487253,1709075436852,-500.0,0.00023835,2]
[315487254,1709075436863,-500.0,0.00023835,2]
[315487255,1709075436874,-500.0,0.00023835,2]
[315487256,1709075436885,-500.0,0.00023835,2]
[315487257,1709075436897,-221.78258636,0.00023835,2]
[315487258,1709075436907,-584.22,0.00023835,2]
[315487259,1709075436918,-500.0,0.00023835,2]
[315487260,1709075436928,-517.11275279,0.00023835,2]
[315487261,1709075436939,-502.90335844,0.00023835,2]
[315487262,1709075436950,-500.0,0.00023835,2]
[315487263,1709075436960,-500.0,0.00023835,2]
[315487264,1709075436971,-500.0,0.00023835,2]
[315487265,1709075436982,-500.0,0.00023835,2]
[315487266,1709075436996,-500.0,0.00023835,2]
[315487267,1709075437006,-500.0,0.00023835,2]
[315487268,1709075437017,-500.0,0.00023835,2]
[315487269,1709075437030,-500.0,0.00023835,2]
[315487270,1709075437041,-500.0,0.00023835,2]
[315487271,1709075437051,-500.0,0.00023835,2]
[315487272,1709075437061,-194.37961082,0.00023835,2]
[315487273,1709075437073,-500.0,0.00023835,2]
[315487274,1709075437085,-524.91015703,0.00023835,2]
[315487275,1709075437095,-468.24,0.00023835,2]
[315487276,1709075437106,-500.0,0.00023835,2]
[315487277,1709075437116,-500.0,0.00023835,2]
[315487278,1709075437127,-363.17320288,0.00023835,2]
[315487279,1709075437138,-500.0,0.00023835,2]
[315487280,1709075437148,-503.36219255,0.00023835,2]
[315487281,1709075437158,-500.0,0.00023835,2]
[315487282,1709075437169,-500.0,0.00023835,2]
[315487283,1709075437179,-500.0,0.00023835,2]
[315487284,1709075437191,-500.0,0.00023835,2]
[315487285,1709075437202,-500.0,0.00023835,2]
[315487286,1709075437213,-472.66692369,0.00023835,2]
[315487287,1709075437225,-500.0,0.00023835,2]
[315487288,1709075437235,-500.0,0.00023835,2]
[315487289,1709075437247,-500.0,0.00023835,2]
[315487290,1709075437257,-500.0,0.00023835,2]
[315487291,1709075437268,-500.0,0.00023835,2]
[315487292,1709075437279,-500.0,0.00023835,2]
[315487293,1709075437290,-556.94544913,0.00023835,2]
[315487294,1709075437300,-500.0,0.00023835,2]
[315487295,1709075437311,-568.99718029,0.00023835,2]
[315487296,1709075437322,-500.0,0.00023835,2]
[315487297,1709075437332,-500.0,0.00023835,2]
[315487298,1709075437343,-500.0,0.00023835,2]
[315487299,1709075437354,-500.0,0.00023835,2]
[315487300,1709075437365,-500.0,0.00023835,2]
[315487301,1709075437375,-500.0,0.00023835,2]
[315487302,1709075437386,-217.3782616,0.00023835,2]
[315487303,1709075437397,-500.0,0.00023835,2]
[315487304,1709075437408,-500.0,0.00023835,2]
[315487305,1709075437419,-500.0,0.00023835,2]
[315487306,1709075437429,-500.0,0.00023835,2]
[315487307,1709075437440,-500.0,0.00023835,2]
[315487308,1709075437450,-500.0,0.00023835,2]
[315487309,1709075437460,-500.0,0.00023835,2]
[315487310,1709075437471,-500.0,0.00023835,2]
[315487311,1709075437481,-500.0,0.00023835,2]
[315487312,1709075437491,-500.0,0.00023835,2]
[315487313,1709075437503,-500.0,0.00023835,2]
[315487314,1709075437513,-500.0,0.00023835,2]
[315487315,1709075437523,-500.0,0.00023835,2]
[315487316,1709075437534,-500.0,0.00023835,2]
[315487317,1709075437544,-500.0,0.00023835,2]
[315487318,1709075437554,-500.0,0.00023835,2]
[315487320,1709075437565,-505.23604458,0.00023835,2]
[315487321,1709075437576,-500.0,0.00023835,2]
[315487322,1709075437586,-500.0,0.00023835,2]
[315487323,1709075437596,-500.0,0.00023835,2]
[315487324,1709075437607,-500.0,0.00023835,2]
[315487325,1709075437617,-500.0,0.00023835,2]
[315487326,1709075437627,-500.0,0.00023835,2]
[315487327,1709075437638,-500.0,0.00023835,2]
[315487328,1709075437648,-500.0,0.00023835,2]
[315487329,1709075437658,-500.0,0.00023835,2]
[315487330,1709075437668,-559.79491464,0.00023835,2]
[315487331,1709075437679,-500.0,0.00023835,2]
[315487332,1709075437690,-500.0,0.00023835,2]
[315487333,1709075437700,-500.0,0.00023835,2]
[315487334,1709075437710,-500.0,0.00023835,2]
[315487335,1709075437720,-500.0,0.00023835,2]
[315487336,1709075437729,-500.0,0.00023835,2]
[315487337,1709075437740,-508.914227,0.00023835,2]
[315487338,1709075437750,-508.85587923,0.00023835,2]
[315487339,1709075437760,-506.42074322,0.00023835,2]
[315487340,1709075437770,-500.0,0.00023835,2]
[315487341,1709075437781,-500.0,0.00023835,2]
[315487342,1709075437791,-506.1237944,0.00023835,2]
[315487343,1709075437802,-500.0,0.00023835,2]
[315487344,1709075437812,-523.90117579,0.00023835,2]
[315487345,1709075437823,-510.73290823,0.00023835,2]
[315487346,1709075437834,-500.0,0.00023835,2]
[315487347,1709075437844,-511.12052832,0.00023835,2]
[315487348,1709075437854,-500.0,0.00023835,2]
[315487349,1709075437865,-500.0,0.00023835,2]
[315487350,1709075437875,-348.89,0.00023835,2]
[315487351,1709075437885,-500.0,0.00023835,2]
[315487352,1709075437897,-500.0,0.00023835,2]
[315487353,1709075437907,-258.62937853,0.00023835,2]
[315487354,1709075437917,-500.0,0.00023835,2]
[315487355,1709075437927,-504.55175381,0.00023835,2]
[315487356,1709075437937,-500.0,0.00023835,2]
[315487357,1709075437947,-500.0,0.00023835,2]
[315487358,1709075437957,-500.0,0.00023835,2]
[315487359,1709075437967,-500.0,0.00023835,2]
[315487360,1709075437977,-535.72,0.00023835,2]
[315487361,1709075437988,-284.2857962,0.00023835,2]
[315487362,1709075437999,-500.0,0.00023835,2]
[315487363,1709075438009,-500.0,0.00023835,2]
[315487364,1709075438020,-500.0,0.00023835,2]
[315487365,1709075438030,-500.0,0.00023835,2]
[315487366,1709075438041,-500.0,0.00023835,2]
[315487367,1709075438051,-507.69933536,0.00023835,2]
[315487368,1709075438062,-469.08972865,0.00023835,2]
[315487369,1709075438073,-500.0,0.00023835,2]
[315487370,1709075438083,-155.7589469,0.00023835,2]
[315487371,1709075438094,-596.01,0.00023835,2]
[315487373,1709075438105,-596.01,0.00023835,2]
[315487375,1709075438115,-535.6327318,0.00023835,2]
[315487379,1709075438801,-60.3772682,0.00023835,2]
[315487380,1709075438810,-500.0,0.00023835,2]
[315487381,1709075438819,-156.44193636,0.00023835,2]
[315487382,1709075438830,-596.01,0.00023835,2]
[315487383,1709075438840,-544.97436377,0.00023835,2]
[315487384,1709075438853,-51.03563623,0.00023835,2]
[315487385,1709075438863,-500.0,0.00023835,2]
[315487386,1709075438873,-253.29461664,0.00023835,2]
[315487387,1709075438884,-259.50191428,0.00023835,2]
[315487388,1709075438894,-158.61754659,0.00023835,2]
[315487389,1709075438905,-341.38245341,0.00023835,2]
[315487390,1709075438915,-176.54101381,0.00023835,2]
[315487391,1709075438927,-323.46282586,0.00023835,2]
[315487392,1709075438935,-300.97716374,0.00023835,2]
[315487393,1709075438947,-199.02283626,0.00023835,2]
[315487394,1709075438956,-234.50716374,0.00023835,2]
[315487395,1709075438974,-265.49283626,0.00023835,2]
[315487396,1709075438985,-105.67213953,0.00023835,2]
[315487397,1709075439425,-616.05201423,0.00023039,2]
[315487398,1709075439436,-151.0,0.00023274,2]
[315487399,1709075439446,-205.0,0.00023717,2]
[315487400,1709075439455,-23318.20026315,0.00023835,4]
[315487401,1709075439468,-294.36625467,0.00023835,4]
[315487402,1709075439493,-1080.89426709,0.00023835,4]
[315487403,1709075440350,-308.80806398,0.00023835,4]
[315487404,1709075440462,-459.88351711,0.00023835,4]
[315487405,1709075440519,-565.02377194,0.00023835,4]
[315487406,1709075440577,-56936.88,0.00023835,4]
[315487407,1709075441256,-4111.88657085,0.00023835,4]
[315487408,1709075441266,-394.32786047,0.00023835,2]
[315487409,1709075441276,-507.9366445,0.00023835,2]
[315487410,1709075441286,-500.0,0.00023835,2]
[315487411,1709075441297,-502.23928066,0.00023835,2]
[315487412,1709075441307,-500.0,0.00023835,2]
[315487414,1709075441317,-502.84895937,0.00023835,2]
[315487415,1709075441326,-526.76241383,0.00023835,2]
[315487417,1709075441336,-178.53839579,0.00023835,2]
[315487418,1709075441346,-510.79045899,0.00023835,2]
[315487419,1709075441356,-517.77066803,0.00023835,2]
[315487420,1709075441366,-500.0,0.00023835,2]
[315487422,1709075441376,-500.0,0.00023835,2]
[315487423,1709075441385,-500.0,0.00023835,2]
[315487424,1709075441397,-500.0,0.00023835,2]
[315487425,1709075441406,-510.71853036,0.00023835,2]
[315487426,1709075441416,-500.0,0.00023835,2]
[315487427,1709075441427,-500.0,0.00023835,2]
[315487428,1709075441437,-500.0,0.00023835,2]
[315487429,1709075441447,-501.75943625,0.00023835,2]
[315487430,1709075441458,-500.0,0.00023835,2]
[315487431,1709075441467,-500.0,0.00023835,2]
[315487432,1709075441477,-325.59,0.00023835,2]
[315487433,1709075441487,-500.0,0.00023835,2]
[315487434,1709075441497,-500.0,0.00023835,2]
[315487435,1709075441507,-500.0,0.00023835,2]
[315487436,1709075441517,-489.17150158,0.00023835,2]
[315487437,1709075441527,-500.0,0.00023835,2]
[315487438,1709075441537,-515.68379389,0.00023835,2]
[315487439,1709075441547,-500.0,0.00023835,2]
[315487440,1709075441556,-516.79454792,0.00023835,2]
[315487441,1709075441567,-500.0,0.00023835,2]
[315487442,1709075441577,-259.69327649,0.00023835,2]
[315487443,1709075441587,-500.0,0.00023835,2]
[315487444,1709075441597,-505.33266886,0.00023835,2]
[315487445,1709075441607,-502.6928588,0.00023835,2]
[315487446,1709075441617,-510.7402983,0.00023835,2]
[315487447,1709075441627,-511.33749481,0.00023835,2]
[315487448,1709075441638,-500.0,0.00023835,2]
[315487449,1709075441648,-500.0,0.00023835,2]
[315487450,1709075441657,-500.0,0.00023835,2]
[315487451,1709075441666,-500.0,0.00023835,2]
[315487452,1709075441676,-500.0,0.00023835,2]
[315487453,1709075441685,-500.0,0.00023835,2]
[315487454,1709075441695,-364.32648412,0.00023835,2]
[315487455,1709075441704,-489.62623223,0.00023835,2]
[315487456,1709075441713,-511.81392724,0.00023835,2]
[315487457,1709075441723,-500.0,0.00023835,2]
[315487458,1709075441732,-500.0,0.00023835,2]
[315487459,1709075441742,-250.5,0.00023835,2]
[315487460,1709075441751,-504.54135406,0.00023835,2]
[315487461,1709075441760,-500.0,0.00023835,2]
[315487462,1709075441770,-639.76,0.00023835,2]
[315487463,1709075441779,-500.0,0.00023835,2]
[315487464,1709075441789,-500.0,0.00023835,2]
[315487465,1709075441799,-500.0,0.00023835,2]
[315487466,1709075441808,-500.0,0.00023835,2]
[315487467,1709075441817,-500.0,0.00023835,2]
[315487468,1709075441826,-501.69208808,0.00023835,2]
[315487469,1709075441835,-500.0,0.00023835,2]
[315487470,1709075441845,-500.0,0.00023835,2]
[315487471,1709075441855,-625.99,0.00023835,2]
[315487472,1709075441865,-500.0,0.00023835,2]
[315487473,1709075441875,-431.63817776,0.00023835,2]
[315487474,1709075441886,-503.83499584,0.00023835,2]
[315487475,1709075441897,-500.0,0.00023835,2]
[315487476,1709075441906,-560.2,0.00023835,2]
[315487477,1709075441914,-560.2,0.00023835,2]
[315487478,1709075441923,-560.2,0.00023835,2]
[315487479,1709075441932,-505.79256036,0.00023835,2]
[315487480,1709075441941,-560.2,0.00023835,2]
[315487481,1709075441951,-560.2,0.00023835,2]
[315487482,1709075441960,-502.27825237,0.00023835,2]
[315487483,1709075441969,-500.0,0.00023835,2]
[315487484,1709075441978,-502.92292849,0.00023835,2]
[315487485,1709075441988,-500.0,0.00023835,2]
[315487486,1709075442001,-500.0,0.00023835,2]
[315487487,1709075442009,-500.0,0.00023835,2]
[315487488,1709075442018,-500.0,0.00023835,2]
[315487489,1709075442027,-500.0,0.00023835,2]
[315487490,1709075442037,-500.0,0.00023835,2]
[315487491,1709075442046,-500.0,0.00023835,2]
[315487492,1709075442055,-500.0,0.00023835,2]
[315487493,1709075442064,-506.51739432,0.00023835,2]
[315487494,1709075442074,-500.0,0.00023835,2]
[315487495,1709075442083,-500.0,0.00023835,2]
[315487496,1709075442093,-500.0,0.00023835,2]
[315487497,1709075442102,-500.0,0.00023835,2]
[315487498,1709075442111,-431.67,0.00023835,2]
[315487499,1709075442120,-500.0,0.00023835,2]
[315487500,1709075442130,-500.0,0.00023835,2]
[315487501,1709075442139,-501.74462783,0.00023835,2]
[315487502,1709075442149,-586.22,0.00023835,2]
[315487503,1709075442158,-500.0,0.00023835,2]
[315487504,1709075442167,-163.32851516,0.00023835,2]
[315487505,1709075442187,-336.67148484,0.00023835,2]
[315487506,1709075442196,-500.0,0.00023835,2]
[315487507,1709075442206,-500.0,0.00023835,2]
[315487508,1709075442215,-500.0,0.00023835,2]
[315487509,1709075442224,-509.23763593,0.00023835,2]
[315487510,1709075442233,-500.0,0.00023835,2]
[315487511,1709075442242,-507.81446546,0.00023835,2]
[315487512,1709075442252,-500.0,0.00023835,2]
[315487513,1709075442262,-488.66832383,0.00023835,2]
[315487546,1709075442920,415.56061521,0.00019467,2]
[315487559,1709075443233,-284.58560959,0.00023834,2]
[315487560,1709075443242,-11.33167617,0.00023835,2]
[315487561,1709075443252,-542.59,0.00023835,2]
[315487562,1709075443262,-500.0,0.00023835,2]
[315487563,1709075443271,-505.49094388,0.00023835,2]
[315487564,1709075443280,-500.0,0.00023835,2]
[315487565,1709075443290,-503.43647403,0.00023835,2]
[315487566,1709075443299,-556.44,0.00023835,2]
[315487567,1709075443309,-502.6598259,0.00023835,2]
[315487568,1709075443318,-500.0,0.00023835,2]
[315487569,1709075443327,-500.0,0.00023835,2]
[315487570,1709075443337,-500.0,0.00023835,2]
[315487571,1709075443347,-500.0,0.00023835,2]
[315487572,1709075443356,-509.31375057,0.00023835,2]
[315487573,1709075443366,-500.0,0.00023835,2]
[315487574,1709075443375,-500.0,0.00023835,2]
[315487575,1709075443384,-501.2614507,0.00023835,2]
[315487576,1709075443396,-500.0,0.00023835,2]
[315487577,1709075443405,-510.58944491,0.00023835,2]
[315487578,1709075443414,-500.0,0.00023835,2]
[315487579,1709075443424,-503.47069947,0.00023835,2]
[315487580,1709075443434,-512.03117327,0.00023835,2]
[315487581,1709075443443,-500.0,0.00023835,2]
[315487582,1709075443453,-500.0,0.00023835,2]
[315487583,1709075443462,-265.95,0.00023835,2]
[315487584,1709075443471,-506.44360194,0.00023835,2]
[315487585,1709075443480,-500.0,0.00023835,2]
[315487586,1709075443489,-500.0,0.00023835,2]
[315487587,1709075443498,-586.77215913,0.00023835,2]
[315487588,1709075443507,-500.0,0.00023835,2]
[315487589,1709075443516,-500.0,0.00023835,2]
[315487590,1709075443525,-500.0,0.00023835,2]
[315487591,1709075443534,-500.0,0.00023835,2]
[315487592,1709075443543,-500.0,0.00023835,2]
[315487593,1709075443552,-500.0,0.00023835,2]
[315487594,1709075443561,-500.0,0.00023835,2]
[315487595,1709075443570,-500.0,0.00023835,2]
[315487596,1709075443579,-503.22,0.00023835,2]
[315487597,1709075443588,-500.0,0.00023835,2]
[315487598,1709075443598,-524.79452311,0.00023835,2]
[315487599,1709075443607,-500.0,0.00023835,2]
[315487600,1709075443616,-500.0,0.00023835,2]
[315487601,1709075443625,-505.49372105,0.00023835,2]
[315487602,1709075443634,-500.0,0.00023835,2]
[315487603,1709075443644,-502.62220082,0.00023835,2]
[315487604,1709075443654,-504.93634571,0.00023835,2]
[315487605,1709075443664,-500.0,0.00023835,2]
[315487606,1709075443673,-500.0,0.00023835,2]
[315487607,1709075443682,-529.53220934,0.00023835,2]
[315487608,1709075443690,-500.0,0.00023835,2]
[315487609,1709075443699,-505.88044531,0.00023835,2]
[315487610,1709075443709,-500.0,0.00023835,2]
[315487611,1709075443718,-507.41809111,0.00023835,2]
[315487612,1709075443727,-500.0,0.00023835,2]
[315487613,1709075443737,-500.0,0.00023835,2]
[315487614,1709075443746,-500.0,0.00023835,2]
[315487615,1709075443754,-513.05798157,0.00023835,2]
[315487616,1709075443764,-500.0,0.00023835,2]
[315487617,1709075443773,-500.0,0.00023835,2]
[315487618,1709075443782,-500.0,0.00023835,2]
[315487619,1709075443792,-511.70150995,0.00023835,2]
[315487620,1709075443801,-500.0,0.00023835,2]
[315487621,1709075443810,-500.0,0.00023835,2]
[315487622,1709075443819,-500.0,0.00023835,2]
[315487623,1709075443828,-500.0,0.00023835,2]
[315487624,1709075443837,-500.0,0.00023835,2]
[315487625,1709075443846,-504.22997444,0.00023835,2]
[315487626,1709075443855,-500.0,0.00023835,2]
[315487627,1709075443865,-500.0,0.00023835,2]
[315487628,1709075443874,-500.0,0.00023835,2]
[315487629,1709075443884,-402.54337285,0.00023835,2]
[315487630,1709075443893,-500.0,0.00023835,2]
[315487631,1709075443904,-520.33935003,0.00023835,2]
[315487632,1709075443913,-500.0,0.00023835,2]
[315487633,1709075443923,-500.0,0.00023835,2]
[315487634,1709075443932,-515.54037188,0.00023835,2]
[315487635,1709075443941,-500.0,0.00023835,2]
[315487636,1709075443951,-500.0,0.00023835,2]